Workbook

Sheet BExRepositorySheet (hidden)
A1: 7

Sheet Ingresos
A3: EMPRESA DE ACUEDUCTO ALCANTARILLADO DE BOGOTA
A4: EJECUCION PRESUPUESTAL DE INGRESOS
A5: A 31 DE ENERO DE 2020
C6: 1 | D6: 2 | E6: 3 | F6: 4 | G6: 5 | H6: 6 | I6: 7=(6/4) | J6: 8=(4-6)
A7: CODIGO SECRETARIA DE HACIENDA | B7: RUBRO | C7: PRESUPUESTO INICIAL | D7: MODIFICACIONES MES | E7: MODIFICACIONES ACUMULADAS | F7: PRESUPUESTO DEFINITIVO | G7: RECAUDOS MES | H7: RECAUDOS ACUMULADOS | I7: % EJEC PPTAL | J7: SALDO POR RECAUDAR
A8: TOTAL INGRESOS + DISPONIBILIDAD INICIAL | C8: 5839715601000 | F8: 5839715601000 | G8: 1076381221957 | H8: 1076381221957 | I8: 0.1843208292 | J8: 4763334379043
A9: 310000000000000 | B9: DISPONIBILIDAD INICIAL | C9: 767299231000 | F9: 767299231000 | G9: 767299231000 | H9: 767299231000 | I9: 1
A10: 310000000000000 | B10: DISPONIBILIDAD INICIAL | C10: 767299231000 | F10: 767299231000 | G10: 767299231000 | H10: 767299231000 | I10: 1
A11: 320000000000000 | B11: INGRESOS | C11: 5072416370000 | F11: 5072416370000 | G11: 309081990957 | H11: 309081990957 | I11: 0.06093387617 | J11: 4763334379043
A12: 321000000000000 | B12: INGRESOS CORRIENTES | C12: 2820980097000 | F12: 2820980097000 | G12: 162763816016 | H12: 162763816016 | I12: 0.05769761233 | J12: 2658216280984
A13: 321010000000000 | B13: INGRESOS DE EXPLOTACION | C13: 1891699605000 | F13: 1891699605000 | G13: 162750766282 | H13: 162750766282 | I13: 0.08603414932 | J13: 1728948838718
A14: 321010200000000 | B14: VENTA DE SERVICIOS | C14: 1867900061000 | F14: 1867900061000 | G14: 154371937449 | H14: 154371937449 | I14: 0.08264464501 | J14: 1713528123551
A15: 321010201000000 | B15: SERVICIO ACUEDUCTO | C15: 957909591000 | F15: 957909591000 | G15: 77786754799 | H15: 77786754799 | I15: 0.08120469356 | J15: 880122836201
A16: 321010202000000 | B16: SERVICIO ALCANTARILLADO | C16: 909990470000 | F16: 909990470000 | G16: 76585182650 | H16: 76585182650 | I16: 0.08416042275 | J16: 833405287350
A17: 321019900000000 | B17: OTROS INGRESOS DE EXPLOTACION | C17: 23799544000 | F17: 23799544000 | G17: 8378828833 | H17: 8378828833 | I17: 0.352058377 | J17: 15420715167
A18: 321019902000000 | B18: INTERESES A USUARIOS | C18: 2987672000 | F18: 2987672000 | G18: 2154589500 | H18: 2154589500 | I18: 0.7211599868 | J18: 833082500
A19: 321019903000000 | B19: PUBLICACIONES | C19: 6794000 | F19: 6794000 | G19: 2130441 | H19: 2130441 | I19: 0.3135768325 | J19: 4663559
A20: 321019904000000 | B20: SERVICIOS | C20: 529000000 | F20: 529000000 | G20: 67624797 | H20: 67624797 | I20: 0.127835155 | J20: 461375203
A21: 321019905000000 | B21: CUOTAS PARTES PENSIONALES | G21: 123142441 | H21: 123142441 | J21: -123142441
A22: 321019906000000 | B22: EXTRAORDINARIOS RECUPERACIÓN | G22: 4807708517 | H22: 4807708517 | J22: -4807708517
A23: 321019907000000 | B23: INGRESOS CENTRAL HIDROELÉCTRICA | C23: 10889390000 | F23: 10889390000 | G23: 358446270 | H23: 358446270 | I23: 0.03291702015 | J23: 10530943730
A24: 321019909000000 | B24: COMISIONES | C24: 9386688000 | F24: 9386688000 | G24: 865186867 | H24: 865186867 | I24: 0.09217168686 | J24: 8521501133
A25: 321020000000000 | B25: OTROS INGRESOS CORRIENTES | C25: 929280492000 | F25: 929280492000 | G25: 13049734 | H25: 13049734 | I25: 1.404283649e-05 | J25: 929267442266
A26: 321020100000000 | B26: RENTAS CONTRACTUALES | C26: 929280492000 | F26: 929280492000 | G26: 13049734 | H26: 13049734 | I26: 1.404283649e-05 | J26: 929267442266
A27: 321020199000000 | B27: OTRAS RENTAS CONTRACTUALES | C27: 929280492000 | F27: 929280492000 | G27: 13049734 | H27: 13049734 | I27: 1.404283649e-05 | J27: 929267442266
A28: 322000000000000 | B28: TRANSFERENCIAS | C28: 244494114000 | F28: 244494114000 | G28: 11738548682 | H28: 11738548682 | I28: 0.04801157987 | J28: 232755565318
A29: 322030000000000 | B29: MUNICIPIOS | C29: 2068000000 | F29: 2068000000 | J29: 2068000000
A30: 322030000000000 | B30: MUNICIPIOS | C30: 2068000000 | F30: 2068000000 | J30: 2068000000
A31: 322040000000000 | B31: ADMINISTRACION CENTRAL | C31: 242426114000 | F31: 242426114000 | G31: 11738548682 | H31: 11738548682 | I31: 0.04842113949 | J31: 230687565318
A32: 322040300000000 | B32: SECRETARIA DISTRITAL DE HACIENDA | C32: 78525000000 | F32: 78525000000 | G32: 11738548682 | H32: 11738548682 | I32: 0.1494880443 | J32: 66786451318
A33: 322040500000000 | B33: SDH - MÍNIMO VITAL | C33: 73823345000 | F33: 73823345000 | J33: 73823345000
A34: 322040600000000 | B34: SDH - LEY 99 DE 1993 | C34: 90077769000 | F34: 90077769000 | J34: 90077769000
A35: 323000000000000 | B35: RECURSOS DE CAPITAL | C35: 2006942159000 | F35: 2006942159000 | G35: 134579626259 | H35: 134579626259 | I35: 0.06705705277 | J35: 1872362532741
A36: 323010000000000 | B36: RECURSOS DEL CREDITO | C36: 1689330396000 | F36: 1689330396000 | J36: 1689330396000
A37: 323010100000000 | B37: CREDITO INTERNO | C37: 1689330396000 | F37: 1689330396000 | J37: 1689330396000
A38: 323010101000000 | B38: VIGENCIA | C38: 1689330396000 | F38: 1689330396000 | J38: 1689330396000
A39: 323020000000000 | B39: RENDIMIENTOS POR OPERACIONES FINANCIERAS | C39: 72159584000 | F39: 72159584000 | G39: 18614501044 | H39: 18614501044 | I39: 0.2579629761 | J39: 53545082956
A40: 323020000000000 | B40: RENDIMIENTOS POR OPERACIONES FINANCIERAS | C40: 72159584000 | F40: 72159584000 | G40: 18614501044 | H40: 18614501044 | I40: 0.2579629761 | J40: 53545082956
A41: 323090000000000 | B41: OTROS RECURSOS DE CAPITAL | C41: 245452179000 | F41: 245452179000 | G41: 115965125215 | H41: 115965125215 | I41: 0.4724550651 | J41: 129487053785
A42: 323090100000000 | B42: RECUPERACION PRESTAMOS - BIENESTAR | C42: 10700000000 | F42: 10700000000 | G42: 462776215 | H42: 462776215 | I42: 0.04325011355 | J42: 10237223785
A43: 323090300000000 | B43: RECURSOS FIDUCIA | C43: 119249830000 | F43: 119249830000 | J43: 119249830000
A44: 323099900000000 | B44: OTROS | C44: 115502349000 | F44: 115502349000 | G44: 115502349000 | H44: 115502349000 | I44: 1

Sheet Gastos
A2: EMPRESA DE ACUEDUCTO ALCANTARILLADO DE BOGOTA
A3: EJECUCION PRESUPUESTAL DE GASTOS
A4: A 31 ENERO DEL 2020 | C4: 1 | D4: 2 | E4: 3 | F4: 4=(1+3) | G4: 5 | H4: 6=(4-5) | I4: 7 | J4: 8 | K4: 9=(8/6) | L4: 11 | M4: 12 | N4: 13=(12/6)
A5: CODIGO SECRETARIA DE HACIENDA | B5: RUBRO | C5: PRESUPUESTO INICIAL | D5: MODIFICACIONES MES | E5: MODIFICACIONES ACUMULADAS | F5: PRESUPUESTO DEFINITIVO | G5: SUSPENSION | H5: APROPIACION DISPONIBLE | I5: COMPROMISOS MES | J5: COMPROMISOS ACUMULADOS | K5: % EJEC PPTAL | L5: AUTORIZACIONES DE GIRO | N5: % EJEC AUT. GIRO
L6: MES | M6: ACUMULADO
A7: TOTAL GASTOS + DISPONIBILIDAD FINAL | C7: 5839715601000 | F7: 5839715601000 | G7: 425192907245 | H7: 5414522693755 | I7: 2259290887694 | J7: 2259290887694 | K7: 0.417265014 | L7: 151851058245 | M7: 151851058245 | N7: 0.02804514208
A8: 330000000000000 | B8: GASTOS | C8: 5162593543000 | F8: 5162593543000 | G8: 425192907245 | H8: 4737400635755 | I8: 2259290887694 | J8: 2259290887694 | K8: 0.4769051768 | L8: 151851058245 | M8: 151851058245 | N8: 0.03205366612
A9: 331000000000000 | B9: GASTOS DE FUNCIONAMIENTO | C9: 1523729930000 | F9: 1523729930000 | G9: 23140379822 | H9: 1500589550178 | I9: 248328637047 | J9: 248328637047 | K9: 0.1654873826 | L9: 61505672275 | M9: 61505672275 | N9: 0.04098767199
A10: 331010000000000 | B10: SERVICIOS PERSONALES | C10: 387255360000 | F10: 387255360000 | G10: 9196456116 | H10: 378058903884 | I10: 25329011551 | J10: 25329011551 | K10: 0.06699752682 | L10: 19742859207 | M10: 19742859207 | N10: 0.05222164854
A11: 331010100000000 | B11: SERVICIOS PERSONALES ASOCIADOS A LA NOMINA | C11: 254218541000 | F11: 254218541000 | G11: 3315253800 | H11: 250903287200 | I11: 19125070927 | J11: 19125070927 | K11: 0.0762248719 | L11: 19116789767 | M11: 19116789767 | N11: 0.07619186652
A12: 331010101000000 | B12: SUELDOS PERSONAL DE NOMINA | C12: 141860559000 | F12: 141860559000 | H12: 141860559000 | I12: 10317258975 | J12: 10317258975 | K12: 0.07272817087 | L12: 10317258975 | M12: 10317258975 | N12: 0.07272817087
A13: 331010102000000 | B13: GASTOS DE REPRESENTACION | C13: 73834000 | F13: 73834000 | H13: 73834000 | I13: 13964 | J13: 13964 | K13: 0.0001891269605 | L13: 13964 | M13: 13964 | N13: 0.0001891269605
A14: 331010103000000 | B14: HORAS EXTRAS, DOMINICALES, FESTIVOS, RECARGO NOCTURNO | C14: 17666301000 | F14: 17666301000 | G14: 3315253800 | H14: 14351047200 | I14: 2250619585 | J14: 2250619585 | K14: 0.1568261573 | L14: 2250619585 | M14: 2250619585 | N14: 0.1568261573
A15: 331010104000000 | B15: SUBSIDIO DE TRANSPORTE | C15: 2030387000 | F15: 2030387000 | H15: 2030387000 | I15: 143449441 | J15: 143449441 | K15: 0.07065128027 | L15: 143449441 | M15: 143449441 | N15: 0.07065128027
A16: 331010105000000 | B16: SUBSIDIO DE ALIMENTACION | C16: 9684978000 | F16: 9684978000 | H16: 9684978000 | I16: 1015027126 | J16: 1015027126 | K16: 0.1048042779 | L16: 1015027126 | M16: 1015027126 | N16: 0.1048042779
A17: 331010106000000 | B17: BONIFICACION POR SERVICIOS PRESTADOS | C17: 435123000 | F17: 435123000 | H17: 435123000 | I17: 9635326 | J17: 9635326 | K17: 0.02214391333 | L17: 9635326 | M17: 9635326 | N17: 0.02214391333
A18: 331010107000000 | B18: PRIMA SEMESTRAL | C18: 16283229000 | F18: 16283229000 | H18: 16283229000 | I18: 11886777 | J18: 11886777 | K18: 0.0007300012178 | L18: 11886777 | M18: 11886777 | N18: 0.0007300012178
A19: 331010109000000 | B19: PRIMA DE NAVIDAD | C19: 17204839000 | F19: 17204839000 | H19: 17204839000 | I19: 3199586 | J19: 3199586 | K19: 0.0001859701216 | L19: 3199586 | M19: 3199586 | N19: 0.0001859701216
A20: 331010110000000 | B20: PRIMA DE VACACIONES | C20: 18158924000 | F20: 18158924000 | H20: 18158924000 | I20: 1533370928 | J20: 1533370928 | K20: 0.08444172838 | L20: 1533370928 | M20: 1533370928 | N20: 0.08444172838
A21: 331010111000000 | B21: PRIMA TECNICA | C21: 4536541000 | F21: 4536541000 | H21: 4536541000 | I21: 350966897 | J21: 350966897 | K21: 0.07736442743 | L21: 350966897 | M21: 350966897 | N21: 0.07736442743
A22: 331010112000000 | B22: OTRAS PRIMAS Y BONIFICACIONES | C22: 10001947000 | F22: 10001947000 | H22: 10001947000 | I22: 2373495239 | J22: 2373495239 | K22: 0.2373033209 | L22: 2365214079 | M22: 2365214079 | N22: 0.2364753661
A23: 331010114000000 | B23: QUINQUENIO | C23: 15353891000 | F23: 15353891000 | H23: 15353891000 | I23: 818315151 | J23: 818315151 | K23: 0.0532969233 | L23: 818315151 | M23: 818315151 | N23: 0.0532969233
A24: 331010115000000 | B24: INDEMNIZACIONES LABORALES | C24: 250000000 | F24: 250000000 | H24: 250000000
A25: 331010116000000 | B25: CONVENCIONES COLECTIVAS O CONVENIOS | C25: 677988000 | F25: 677988000 | H25: 677988000 | I25: 297831932 | J25: 297831932 | K25: 0.4392879107 | L25: 297831932 | M25: 297831932 | N25: 0.4392879107
A26: 331010200000000 | B26: SERVICIOS PERSONALES INDIRECTOS | C26: 55095034000 | F26: 55095034000 | G26: 5881202316 | H26: 49213831684 | I26: 1165987703 | J26: 1165987703 | K26: 0.0236922764 | L26: 287395157 | M26: 287395157 | N26: 0.005839723248
A27: 331010203000000 | B27: HONORARIOS EMPRESA | C27: 48860877000 | F27: 48860877000 | G27: 5494202304 | H27: 43366674696 | I27: 851096177 | J27: 851096177 | K27: 0.01962558077 | L27: 13830000 | M27: 13830000 | N27: 0.0003189084729
A28: 331010204000000 | B28: REMUNERACION SERVICIOS TECNICOS | C28: 2244995000 | F28: 2244995000 | G28: 387000012 | H28: 1857994988 | I28: 37156800 | J28: 37156800 | K28: 0.01999833166
A29: 331010299000000 | B29: OTROS GASTOS DE PERSONAL | C29: 3989162000 | F29: 3989162000 | H29: 3989162000 | I29: 277734726 | J29: 277734726 | K29: 0.06962232318 | L29: 273565157 | M29: 273565157 | N29: 0.0685770989
A30: 331010300000000 | B30: APORTES PATRONALES AL SECTOR PRIVADO Y PUBLICO | C30: 77941785000 | F30: 77941785000 | H30: 77941785000 | I30: 5037952921 | J30: 5037952921 | K30: 0.06463738187 | L30: 338674283 | M30: 338674283 | N30: 0.004345221026
A31: 331010301000000 | B31: APORTES PATRONALES AL SECTOR PRIVADO | C31: 54959717000 | F31: 54959717000 | H31: 54959717000 | I31: 3313924220 | J31: 3313924220 | K31: 0.0602973305 | L31: 135941018 | M31: 135941018 | N31: 0.002473466485
A32: 331010301010000 | B32: CESANTIAS FONDOS PRIVADOS | C32: 5752702000 | F32: 5752702000 | H32: 5752702000
A33: 331010301020000 | B33: PENSIONES FONDOS PRIVADOS | C33: 9728294000 | F33: 9728294000 | H33: 9728294000 | I33: 685893664 | J33: 685893664 | K33: 0.07050503038 | L33: 1198367 | M33: 1198367 | N33: 0.0001231836743
A34: 331010301030000 | B34: SALUD EPS PRIVADAS | C34: 30202482000 | F34: 30202482000 | H34: 30202482000 | I34: 2005660356 | J34: 2005660356 | K34: 0.06640713687 | L34: 130899051 | M34: 130899051 | N34: 0.004334049467
A35: 331010301050000 | B35: CAJA DE COMPENSACION | C35: 9276239000 | F35: 9276239000 | H35: 9276239000 | I35: 622370200 | J35: 622370200 | K35: 0.06709294575 | L35: 3843600 | M35: 3843600 | N35: 0.0004143489619
A36: 331010302000000 | B36: APORTES PATRONALES AL SECTOR PUBLICO | C36: 22982068000 | F36: 22982068000 | H36: 22982068000 | I36: 1724028701 | J36: 1724028701 | K36: 0.0750162562 | L36: 202733265 | M36: 202733265 | N36: 0.008821367381
A37: 331010302010000 | B37: CESANTIAS FONDOS PÚBLICOS | C37: 2527769000 | F37: 2527769000 | H37: 2527769000
A38: 331010302020000 | B38: PENSIONES FONDOS PÚBLICOS | C38: 11903800000 | F38: 11903800000 | H38: 11903800000 | I38: 1240489537 | J38: 1240489537 | K38: 0.1042095412 | L38: 197902292 | M38: 197902292 | N38: 0.01662513584
A39: 331010302030000 | B39: SALUD EPS PUBLICOS | C39: 55479000 | F39: 55479000 | H39: 55479000 | I39: 23702564 | J39: 23702564 | K39: 0.4272348817 | L39: 36373 | M39: 36373 | N39: 0.0006556174408
A40: 331010302040000 | B40: RIESGOS PROFESIONALES SECTOR PUBLICO | C40: 2895755000 | F40: 2895755000 | H40: 2895755000 | I40: 227333400 | J40: 227333400 | K40: 0.07850574375 | L40: 159800 | M40: 159800 | N40: 5.518422657e-05
A41: 331010302050000 | B41: ICBF | C41: 3382106000 | F41: 3382106000 | H41: 3382106000 | I41: 139500200 | J41: 139500200 | K41: 0.04124654875 | L41: 2781100 | M41: 2781100 | N41: 0.0008222982958
A42: 331010302060000 | B42: SENA | C42: 2217159000 | F42: 2217159000 | H42: 2217159000 | I42: 93003000 | J42: 93003000 | K42: 0.04194692397 | L42: 1853700 | M42: 1853700 | N42: 0.0008360699436
A43: 331020000000000 | B43: GASTOS GENERALES | C43: 535521585000 | D43: -8644202689 | E43: -8644202689 | F43: 526877382311 | G43: 13943923706 | H43: 512933458605 | I43: 20752426877 | J43: 20752426877 | K43: 0.0404583217 | L43: 7560010040 | M43: 7560010040 | N43: 0.01473877345
A44: 331020100000000 | B44: ADQUISICION DE BIENES | C44: 52613709000 | F44: 52613709000 | G44: 1528340504 | H44: 51085368496 | I44: 3107590064 | J44: 3107590064 | K44: 0.06083131346
A45: 331020101000000 | B45: DOTACION | C45: 6302138000 | F45: 6302138000 | H45: 6302138000
A46: 331020102000000 | B46: MATERIALES Y SUMINISTROS | C46: 19815490000 | F46: 19815490000 | G46: 960214053 | H46: 18855275947
A47: 331020103000000 | B47: GASTOS DE COMPUTADOR | C47: 22303043000 | F47: 22303043000 | G47: 568126451 | H47: 21734916549 | I47: 3107590064 | J47: 3107590064 | K47: 0.1429768574
A48: 331020104000000 | B48: COMBUSTIBLES, LUBRICANTES Y LLANTAS | C48: 4193038000 | F48: 4193038000 | H48: 4193038000
A49: 331020200000000 | B49: ADQUISICION DE SERVICIOS | C49: 132207317000 | F49: 132207317000 | G49: 9394583202 | H49: 122812733798 | I49: 1106337357 | J49: 1106337357 | K49: 0.009008327742 | L49: 407013096 | M49: 407013096 | N49: 0.003314095236
A50: 331020201000000 | B50: VIATICOS Y GASTOS DE VIAJE | C50: 1146346000 | F50: 1146346000 | G50: 229269200 | H50: 917076800 | I50: 27350982 | J50: 27350982 | K50: 0.02982409107 | L50: 27175421 | M50: 27175421 | N50: 0.02963265563
A51: 331020202000000 | B51: GASTOS DE TRANSPORTE Y COMUNICACIÓN | C51: 14825487000 | F51: 14825487000 | G51: 50000000 | H51: 14775487000 | I51: 877857128 | J51: 877857128 | K51: 0.05941307572 | L51: 189712558 | M51: 189712558 | N51: 0.01283968224
A52: 331020203000000 | B52: IMPRESOS Y PUBLICACIONES | C52: 352208000 | F52: 352208000 | G52: 6500000 | H52: 345708000 | I52: 7006720 | J52: 7006720 | K52: 0.02026774041 | L52: 7006720 | M52: 7006720 | N52: 0.02026774041
A53: 331020204000000 | B53: MANTENIMIENTO Y REPARACIONES | C53: 65110277000 | F53: 65110277000 | G53: 5270159853 | H53: 59840117147 | I53: 10904590 | J53: 10904590 | K53: 0.0001822287542 | L53: 10904590 | M53: 10904590 | N53: 0.0001822287542
A54: 331020205000000 | B54: ARRENDAMIENTOS | C54: 11008291000 | F54: 11008291000 | G54: 285066000 | H54: 10723225000
A55: 331020206000000 | B55: SEGUROS | C55: 17325844000 | F55: 17325844000 | H55: 17325844000
A56: 331020207000000 | B56: SUMINISTRO DE ALIMENTOS | C56: 3850289000 | F56: 3850289000 | G56: 500000004 | H56: 3350288996
A57: 331020208000000 | B57: SERVICIOS PUBLICOS | C57: 5316766000 | F57: 5316766000 | H57: 5316766000 | I57: 98290937 | J57: 98290937 | K57: 0.01848697817 | L57: 97086807 | M57: 97086807 | N57: 0.01826050027
A58: 331020209000000 | B58: CAPACITACION | C58: 700001000 | F58: 700001000 | G58: 140000000 | H58: 560001000
A59: 331020210000000 | B59: BIENESTAR E INCENTIVOS | C59: 5047781000 | F59: 5047781000 | G59: 851500000 | H59: 4196281000
A60: 331020211000000 | B60: PROMOCION INSTITUCIONAL | C60: 4797415000 | F60: 4797415000 | G60: 2062088145 | H60: 2735326855
A61: 331020212000000 | B61: INTERESES Y COMISIONES | C61: 702600000 | F61: 702600000 | H61: 702600000 | I61: 10800000 | J61: 10800000 | K61: 0.01537147737 | L61: 1000000 | M61: 1000000 | N61: 0.001423284942
A62: 331020213000000 | B62: SALUD OCUPACIONAL | C62: 1864012000 | F62: 1864012000 | H62: 1864012000
A63: 331020214000000 | B63: PROGRAMAS Y CONVENIOS INSTITUCIONES | C63: 160000000 | F63: 160000000 | H63: 160000000 | I63: 74127000 | J63: 74127000 | K63: 0.46329375 | L63: 74127000 | M63: 74127000 | N63: 0.46329375
A64: 331020300000000 | B64: OTROS GASTOS GENERALES | C64: 350700559000 | D64: -8644202689 | E64: -8644202689 | F64: 342056356311 | G64: 3021000000 | H64: 339035356311 | I64: 16538499456 | J64: 16538499456 | K64: 0.04878104643 | L64: 7152996944 | M64: 7152996944 | N64: 0.02109808553
A65: 331020301000000 | B65: IMPUESTOS, TASAS Y MULTAS | C65: 328691060000 | D65: -8644202689 | E65: -8644202689 | F65: 320046857311 | H65: 320046857311 | I65: 16538499456 | J65: 16538499456 | K65: 0.05167524404 | L65: 7152996944 | M65: 7152996944 | N65: 0.02234984278
A66: 331020302000000 | B66: SENTENCIAS JUDICIALES | C66: 750000000 | F66: 750000000 | H66: 750000000
A67: 331020399000000 | B67: OTROS GASTOS GENERALES | C67: 21259499000 | F67: 21259499000 | G67: 3021000000 | H67: 18238499000
A68: 331030000000000 | B68: TRANSFERENCIAS CORRIENTES | C68: 423259304000 | F68: 423259304000 | H68: 423259304000 | I68: 16365819243 | J68: 16365819243 | K68: 0.03866617718 | L68: 16236158325 | M68: 16236158325 | N68: 0.03835983798
A69: 331030100000000 | B69: TRANSFERENCIAS AL SECTOR PUBLICO | C69: 141264690000 | F69: 141264690000 | H69: 141264690000
A70: 331030100000000 | B70: TRANSFERENCIAS AL SECTOR PUBLICO | C70: 141264690000 | F70: 141264690000 | H70: 141264690000
A71: 331030300000000 | B71: TRANSFERENCIAS DE PREVISION Y SEGURIDAD SOCIAL | C71: 281294614000 | F71: 281294614000 | H71: 281294614000 | I71: 16333060355 | J71: 16333060355 | K71: 0.05806389295 | L71: 16203399437 | M71: 16203399437 | N71: 0.05760294947
A72: 331030301000000 | B72: PENSIONES Y JUBILACIONES | C72: 194666163000 | F72: 194666163000 | H72: 194666163000 | I72: 14377320479 | J72: 14377320479 | K72: 0.07385628944 | L72: 14332187561 | M72: 14332187561 | N72: 0.07362444166
A73: 331030302000000 | B73: CESANTIAS | C73: 19026289000 | F73: 19026289000 | H73: 19026289000 | I73: 1785907876 | J73: 1785907876 | K73: 0.09386527641 | L73: 1785907876 | M73: 1785907876 | N73: 0.09386527641
A74: 331030303000000 | B74: OTRAS TRANSFERENCIAS DE PREVISION SOCIAL | C74: 67602162000 | F74: 67602162000 | H74: 67602162000 | I74: 169832000 | J74: 169832000 | K74: 0.002512227346 | L74: 85304000 | M74: 85304000 | N74: 0.001261853134
A75: 331030303010000 | B75: FONDO DE VIVIENDA | C75: 21832635000 | F75: 21832635000 | H75: 21832635000
A76: 331030303020000 | B76: PAGOS SERVICIOS MEDICOS CONVENCIONALES | C76: 45769527000 | F76: 45769527000 | H76: 45769527000 | I76: 169832000 | J76: 169832000 | K76: 0.00371059111 | L76: 85304000 | M76: 85304000 | N76: 0.001863772811
A77: 331030400000000 | B77: OTRAS TRANSFERENCIAS | C77: 700000000 | F77: 700000000 | H77: 700000000 | I77: 32758888 | J77: 32758888 | K77: 0.04679841143 | L77: 32758888 | M77: 32758888 | N77: 0.04679841143
A78: 331030401000000 | B78: DESTINATARIOS DE OTRAS TRANSFERENCIAS | C78: 700000000 | F78: 700000000 | H78: 700000000 | I78: 32758888 | J78: 32758888 | K78: 0.04679841143 | L78: 32758888 | M78: 32758888 | N78: 0.04679841143
A79: 331040000000000 | B79: CUENTAS POR PAGAR FUNCIONAMIENTO | C79: 177693681000 | D79: 8644202689 | E79: 8644202689 | F79: 186337883689 | H79: 186337883689 | I79: 185881379376 | J79: 185881379376 | K79: 0.9975501261 | L79: 17966644703 | M79: 17966644703 | N79: 0.09641970998
A80: 332000000000000 | B80: GASTOS DE OPERACION | C80: 257596808000 | F80: 257596808000 | G80: 9000000000 | H80: 248596808000 | I80: 145784557705 | J80: 145784557705 | K80: 0.5864297248 | L80: 5173339220 | M80: 5173339220 | N80: 0.02081015948
A81: 332010000000000 | B81: GASTOS DE COMERCIALIZACION | C81: 97177505000 | D81: -28156618935 | E81: -28156618935 | F81: 69020886065 | G81: 9000000000 | H81: 60020886065
A82: 332010100000000 | B82: COMPRA DE BIENES PARA LA VENTA | C82: 3037881000 | F82: 3037881000 | H82: 3037881000
A83: 332010101000000 | B83: MEDIDORES | C83: 3037881000 | F83: 3037881000 | H83: 3037881000
A84: 332010200000000 | B84: COMPRA DE SERVICIOS PARA LA VENTA | C84: 10866852000 | F84: 10866852000 | H84: 10866852000
A85: 332010201000000 | B85: GESTION COMERCIAL | C85: 10866852000 | F85: 10866852000 | H85: 10866852000
A86: 332010500000000 | B86: OTROS GASTOS DE COMERCIALIZACION | C86: 83272772000 | D86: -28156618935 | E86: -28156618935 | F86: 55116153065 | G86: 9000000000 | H86: 46116153065
A87: 332010501000000 | B87: MANTENIMIENTO Y MATERIALES OPERACION INFRAESTRUCTURA | C87: 78122772000 | D87: -28156618935 | E87: -28156618935 | F87: 49966153065 | G87: 9000000000 | H87: 40966153065
A88: 332010502000000 | B88: COMERCIALIZACION DE ENERGIA | C88: 150000000 | F88: 150000000 | H88: 150000000
A89: 332010503000000 | B89: FONDO ATENCION EMERGENCIAS | C89: 4000000000 | F89: 4000000000 | H89: 4000000000
A90: 332010504000000 | B90: FONDO OBLIGACIONES CONTIGENTES | C90: 1000000000 | F90: 1000000000 | H90: 1000000000
A91: 332020000000000 | B91: GASTOS DE PRODUCCION | C91: 90897005000 | F91: 90897005000 | H91: 90897005000 | I91: 49115736921 | J91: 49115736921 | K91: 0.5403449423 | L91: 1829296989 | M91: 1829296989 | N91: 0.02012494239
A92: 332020100000000 | B92: INDUSTRIAL | C92: 90897005000 | F92: 90897005000 | H92: 90897005000 | I92: 49115736921 | J92: 49115736921 | K92: 0.5403449423 | L92: 1829296989 | M92: 1829296989 | N92: 0.02012494239
A93: 332020102000000 | B93: ENERGIA PARA BOMBEO | C93: 49926839000 | F93: 49926839000 | H93: 49926839000 | I93: 49115736921 | J93: 49115736921 | K93: 0.9837541872 | L93: 1829296989 | M93: 1829296989 | N93: 0.0366395515
A94: 332020103000000 | B94: TASA POR USO DE AGUA | C94: 11918982000 | F94: 11918982000 | H94: 11918982000
A95: 332020109000000 | B95: PRODUCTOS QUIMICOS | C95: 29051184000 | F95: 29051184000 | H95: 29051184000
A96: 332030000000000 | B96: CUENTAS POR PAGAR OPERACIÓN | C96: 69522298000 | D96: 28156618935 | E96: 28156618935 | F96: 97678916935 | H96: 97678916935 | I96: 96668820784 | J96: 96668820784 | K96: 0.9896590157 | L96: 3344042231 | M96: 3344042231 | N96: 0.03423504617
A97: 333000000000000 | B97: SERVICIO DE LA DEUDA | C97: 100538280000 | F97: 100538280000 | H97: 100538280000 | I97: 81087799500 | J97: 81087799500 | K97: 0.80653657 | L97: 71793354500 | M97: 71793354500 | N97: 0.7140897427
A98: 333010000000000 | B98: DEUDA INTERNA | C98: 90538280000 | F98: 90538280000 | H98: 90538280000 | I98: 81087799500 | J98: 81087799500 | K98: 0.8956189526 | L98: 71793354500 | M98: 71793354500 | N98: 0.7929613253
A99: 333010100000000 | B99: AMORTIZACION | C99: 74444445000 | F99: 74444445000 | H99: 74444445000 | I99: 74444445000 | J99: 74444445000 | K99: 1 | L99: 70000000000 | M99: 70000000000 | N99: 0.9402985004
A100: 333010200000000 | B100: INTERESES | C100: 16073885000 | F100: 16073885000 | H100: 16073885000 | I100: 6643354500 | J100: 6643354500 | K100: 0.4133011092 | L100: 1793354500 | M100: 1793354500 | N100: 0.1115694495
A101: 333010300000000 | B101: COMISIONES Y OTROS | C101: 19950000 | F101: 19950000 | H101: 19950000
A102: 333030000000000 | B102: BONOS PENSIONALES | C102: 10000000000 | F102: 10000000000 | H102: 10000000000
A103: 334000000000000 | B103: INVERSION | C103: 3280728525000 | F103: 3280728525000 | G103: 393052527423 | H103: 2887675997577 | I103: 1784089893442 | J103: 1784089893442 | K103: 0.6178289721 | L103: 13378692250 | M103: 13378692250 | N103: 0.004633030943
A104: 334010000000000 | B104: DIRECTA | C104: 1740814677000 | D104: 13188217285 | E104: 13188217285 | F104: 1754002894285 | G104: 358619683171 | H104: 1395383211114 | I104: 643640462304 | J104: 643640462304 | K104: 0.4612643016
A105: 334011500000000 | B105: BOGOTA MEJOR PARA TODOS | C105: 1740814677000 | D105: 13188217285 | E105: 13188217285 | F105: 1754002894285 | G105: 358619683171 | H105: 1395383211114 | I105: 643640462304 | J105: 643640462304 | K105: 0.4612643016
A106: 334011502000000 | B106: PILAR DEMOCRACIA URBANA | C106: 1527980398000 | D106: 6196879038 | E106: 6196879038 | F106: 1534177277038 | G106: 327242417971 | H106: 1206934859067 | I106: 643611682216 | J106: 643611682216 | K106: 0.5332613251
A107: 334011502130000 | B107: INFRAESTRUCTURA PARA EL DESARROLLO DEL HABITAT | C107: 1527980398000 | D107: 6196879038 | E107: 6196879038 | F107: 1534177277038 | G107: 327242417971 | H107: 1206934859067 | I107: 643611682216 | J107: 643611682216 | K107: 0.5332613251
A108: 334011502130133 | B108: INFRAESTRUCTURA PARA EL DESARROLLO DEL HABITAT | C108: 1527980398000 | D108: 6196879038 | E108: 6196879038 | F108: 1534177277038 | G108: 327242417971 | H108: 1206934859067 | I108: 643611682216 | J108: 643611682216 | K108: 0.5332613251
A109: 334011502130133000019 | B109: 0019 - CONSTRUCCIÓN DE REDES LOCALES PARA EL SERVICIO DE ALC | C109: 29559352000 | D109: 896031201 | E109: 896031201 | F109: 30455383201 | G109: 2970000000 | H109: 27485383201 | I109: 2016567132 | J109: 2016567132 | K109: 0.07336871083
A110: 334011502130133000020 | B110: 0020 - CONSTRUCCIÓN DE REDES LOCALES PARA EL SERVICIO DE ALC | C110: 30878351000 | D110: -232408518 | E110: -232408518 | F110: 30645942482 | H110: 30645942482 | I110: 2597625091 | J110: 2597625091 | K110: 0.08476244751
A111: 334011502130133000021 | B111: 0021 - CONSTRUCCIÓN DEL SISTEMA TRONCAL Y SECUNDARIO DE ALCA | C111: 9912330000 | F111: 9912330000 | H111: 9912330000
A112: 334011502130133000050 | B112: 0050 - RENOVACIÓN, REHABILITACIÓN O REPOSICIÓN DE LOS SISTEM | C112: 384197759000 | D112: -11976162084 | E112: -11976162084 | F112: 372221596916 | G112: 5000000000 | H112: 367221596916 | I112: 234730036083 | J112: 234730036083 | K112: 0.6392054227
A113: 334011502130133000051 | B113: 0051 - RENOVACIÓN, REHABILITACIÓN O REPOSICIÓN DEL SISTEMA T | C113: 191033782000 | D113: 1083165228 | E113: 1083165228 | F113: 192116947228 | G113: 26335569203 | H113: 165781378025 | I113: 52154751028 | J113: 52154751028 | K113: 0.3145995747
A114: 334011502130133000052 | B114: 0052 - RENOVACIÓN, REHABILITACIÓN O REPOSICIÓN DEL SISTEMA T | C114: 94953962000 | D114: 1956828046 | E114: 1956828046 | F114: 96910790046 | G114: 8752149987 | H114: 88158640059 | I114: 8494128245 | J114: 8494128245 | K114: 0.09635049088
A115: 334011502130133000053 | B115: 0053 - RENOVACIÓN, REHABILITACIÓN O REPOSICIÓN DEL SISTEMA T | C115: 27457018000 | F115: 27457018000 | H115: 27457018000 | I115: 1979233837 | J115: 1979233837 | K115: 0.07208480677
A116: 334011502130133000054 | B116: 0054 - ACCIONES PARA EL SANEAMIENTO DEL RÍO BOGOTÁ | C116: 199958252000 | F116: 199958252000 | H116: 199958252000 | I116: 189945839941 | J116: 189945839941 | K116: 0.9499274876
A117: 334011502130133000068 | B117: 0068 - CONSTRUCCIÓN, RENOVACIÓN, REHABILITACIÓN O REPOSICIÓN | C117: 133991235000 | D117: 12880368944 | E117: 12880368944 | F117: 146871603944 | G117: 43249000000 | H117: 103622603944 | I117: 37567812930 | J117: 37567812930 | K117: 0.3625445752
A118: 334011502130133000081 | B118: 0081 - CORREDORES AMBIENTALES | C118: 335819610000 | D118: -127490597 | E118: -127490597 | F118: 335692119403 | G118: 240935698781 | H118: 94756420622 | I118: 94641256622 | J118: 94641256622 | K118: 0.9987846312
A119: 334011502130133007334 | B119: 7334 - CONSTRUCCIÓN Y EXPANSIÓN DEL SISTEMA DE ABASTECIMIENT | C119: 76238903000 | D119: 1811035275 | E119: 1811035275 | F119: 78049938275 | H119: 78049938275 | I119: 17553771173 | J119: 17553771173 | K119: 0.2249043569
A120: 334011502130133007338 | B120: 7338 - CONSTRUCCIÓN DE REDES LOCALES PARA EL SERVICIO DE ACU | C120: 13979844000 | D120: -94488457 | E120: -94488457 | F120: 13885355543 | H120: 13885355543 | I120: 1930660134 | J120: 1930660134 | K120: 0.1390429023
A121: 334011506000000 | B121: EJE TRANSV. SOSTENIB. AMBIENTAL BASADA EFICIENCIA ENERGETICA | C121: 65123144000 | D121: 6991338247 | E121: 6991338247 | F121: 72114482247 | H121: 72114482247 | I121: 28780088 | J121: 28780088 | K121: 0.0003990888807
A122: 334011506380000 | B122: RECUPERACION Y MANEJO ESTRUCTURA ECOLOGICA PRINCIPAL | C122: 11219688000 | D122: 5377844614 | E122: 5377844614 | F122: 16597532614 | H122: 16597532614 | I122: 28780088 | J122: 28780088 | K122: 0.001733997978
A123: 334011506380177 | B123: CONSOLIDACION DE LA ESTRUCTURA ECOLOGICA PRINCIPAL | C123: 11219688000 | D123: 5377844614 | E123: 5377844614 | F123: 16597532614 | H123: 16597532614 | I123: 28780088 | J123: 28780088 | K123: 0.001733997978
A124: 334011506380177007341 | B124: 7341 - ADEC.HIDRAULICA RECUP.AMB.HUMED,QUEBRADAS,RIOS CUENCA | C124: 11219688000 | D124: 5377844614 | E124: 5377844614 | F124: 16597532614 | H124: 16597532614 | I124: 28780088 | J124: 28780088 | K124: 0.001733997978
A125: 334011506390000 | B125: AMBIENTE SANO PARA LA EQUIDAD Y DISFRUTE DEL CIUDADANO | C125: 53903456000 | D125: 1613493633 | E125: 1613493633 | F125: 55516949633 | H125: 55516949633
A126: 334011506390179 | B126: AMBIENTE SANO | C126: 53903456000 | D126: 1613493633 | E126: 1613493633 | F126: 55516949633 | H126: 55516949633
A127: 334011506390179000082 | B127: 0082 - PLAN DE SANEAMIENTO Y MANEJO DE VERTIMIENTOS | C127: 53903456000 | D127: 1613493633 | E127: 1613493633 | F127: 55516949633 | H127: 55516949633
A128: 334011507000000 | B128: EJE TRANSVERSAL GOBIERNO LEGITIMO, FORT. LOCAL Y EFICIENTE | C128: 147711135000 | F128: 147711135000 | G128: 31377265200 | H128: 116333869800
A129: 334011507420000 | B129: TRANSPARENCIA, GESTION PUBLICA Y SERVICIO A LA CIUDADANIA | C129: 147711135000 | F129: 147711135000 | G129: 31377265200 | H129: 116333869800
A130: 334011507420185 | B130: FORTALECIMIENTO A LA GESTION PUBLICA EFECTIVA Y EFICIENTE | C130: 147711135000 | F130: 147711135000 | G130: 31377265200 | H130: 116333869800
A131: 334011507420185000055 | B131: 0055 - FORTALECIMIENTO ADMINISTRATIVO Y OPERATIVO EMPRESARIA | C131: 147711135000 | F131: 147711135000 | G131: 31377265200 | H131: 116333869800
A132: 334020000000000 | B132: TRANSFERENCIAS PARA INVERSION | C132: 295508851000 | D132: -13188217285 | E132: -13188217285 | F132: 282320633715 | G132: 34432844252 | H132: 247887789463
A133: 334020200000000 | B133: EMPRESAS DISTRITALES | C133: 295508851000 | D133: -13188217285 | E133: -13188217285 | F133: 282320633715 | G133: 34432844252 | H133: 247887789463
A134: 334030000000000 | B134: CUENTAS POR PAGAR INVERSION | C134: 1244404997000 | F134: 1244404997000 | H134: 1244404997000 | I134: 1140449431138 | J134: 1140449431138 | K134: 0.9164616294 | L134: 13378692250 | M134: 13378692250 | N134: 0.01075107564
A135: 340000000000000 | B135: DISPONIBILIDAD FINAL | C135: 677122058000 | F135: 677122058000 | H135: 677122058000
B140: JULIANA CASTRO BUITRAGO | F140: MAURICIO GOMEZ ARANGO
B141: Directora Presupuesto | F141: Gerente Corporativo Financiero

Sheet Graph (hidden)
G1: FEP8Qry3
F2: Dir. SIE - BI Rev 2014.01
F5: Information
F6: Autor | G6: RAGARCIA | I6: Últ.actual.pantalla | J6: 02/07/2014 09:16:31
F7: Usuario actual | G7: AOCAMPOR | I7: Fe.clave | J7: 02/07/2014
F8: Modificado por | G8: RAGARCIA | I8: Hora de modificación | J8: 12/06/2014 15:20:31
F9: InfoSitio | G9: 0PU_C02 | I9: Actualidad de datos | J9: 02/07/2014 00:39:33
F10: Nombre técnico query | G10: ZPU_C02_Q4001 | I10: Actualidad de datos (fecha) | J10: 02/07/2014
F11: Descripción query | G11: EJECUCION PRESUPUESTAL DE GASTOS - SECRETARIA DE HACIENDA | I11: Actualidad de los datos (hora) | J11: 00:39:33
C14: Filter
C15: Cta Entidades PSM | D15: GASTOS, DISPONIBILIDAD FINAL
C16: Ratios

Sheet V_Futuras_2019-2022
A2: EMPRESA DE ACUEDUCTO ALCANTARILLADO DE BOGOTA | M2: EMPRESA DE ACUEDUCTO ALCANTARILLADO DE BOGOTA | Y2: EMPRESA DE ACUEDUCTO ALCANTARILLADO DE BOGOTA | AK2: EMPRESA DE ACUEDUCTO ALCANTARILLADO DE BOGOTA
A3: EJECUCION PRESUPUESTAL DE VIGENCIAS FUTURAS | M3: EJECUCION PRESUPUESTAL DE VIGENCIAS FUTURAS | Y3: EJECUCION PRESUPUESTAL DE VIGENCIAS FUTURAS | AK3: EJECUCION PRESUPUESTAL DE VIGENCIAS FUTURAS
A4: A 31 ENERO DE 2020 | M4: A 31 ENERO DE 2020 | Y4: A 31 ENERO DE 2020 | AK4: A 31 ENERO DE 2020
A6: 2021 | M6: 2022 | Q6: 2020 | Y6: 2023 | AK6: 2021-2022
A7: CODIGO SECRETARIA DE HACIENDA | B7: CONCEPTO | C7: PRESUPUESTO INICIAL | D7: MODIFICACIONES MES | E7: MODIFICACIONES ACUMULADAS | F7: PRESUPUESTO DEFINITIVO | G7: COMPROMISOS MES | H7: COMPROMISOS ACUMULADOS | I7: % EJEC PPTAL | J7: DISPONIBILIDADES MES | K7: DISPONIBILIDADES ACUMULADAS | L7: SALDO DISPONIBLE | M7: CODIGO SECRETARIA DE HACIENDA | N7: CONCEPTO | O7: PRESUPUESTO INICIAL | P7: MODIFICACIONES MES | Q7: MODIFICACIONES ACUMULADAS | R7: PRESUPUESTO DEFINITIVO | S7: COMPROMISOS MES | T7: COMPROMISOS ACUMULADOS | U7: % EJEC PPTAL | V7: DISPONIBILIDADES MES | W7: DISPONIBILIDADES ACUMULADAS | X7: SALDO DISPONIBLE | Y7: CODIGO SECRETARIA DE HACIENDA | Z7: CONCEPTO | AA7: PRESUPUESTO INICIAL | AB7: MODIFICACIONES MES | AC7: MODIFICACIONES ACUMULADAS | AD7: PRESUPUESTO DEFINITIVO | AE7: COMPROMISOS MES | AF7: COMPROMISOS ACUMULADOS | AG7: % EJEC PPTAL | AH7: DISPONIBILIDADES MES | AI7: DISPONIBILIDADES ACUMULADAS | AJ7: SALDO DISPONIBLE | AK7: CODIGO SECRETARIA DE HACIENDA | AL7: CONCEPTO | AM7: Presupuesto Inicial VF Total | AN7: Modificaciones mes VF Total | AO7: Modificaciones Acumuladas VF Total | AP7: Presupuesto Definitivo VF Total | AQ7: Compromisos mes Total | AR7: Compromisos Acumulados Total | AS7: % EJEC PPTAL | AT7: Disponibilidades mes Total | AU7: Disponibilidades Acumuladas Total | AV7: Saldo Disponible Total
A8: 3 | B8: TOTAL GASTOS | C8: =C9 -> 382346750258 | D8: 0 | E8: 0 | F8: 382346750258 | G8: 295541203313 | H8: 295541203313 | I8: =H8/F8 -> 0.7729664319 | J8: 86805546944 | K8: 86805546944 | L8: 1 | M8: 3 | N8: TOTAL GASTOS | O8: =O9 -> 39259233760 | P8: 0 | Q8: 0 | R8: 39259233760 | S8: 23627949336 | T8: 23627949336 | U8: =T8/R8 -> 0.6018443834 | V8: 15631284424 | W8: 15631284424 | X8: 0 | Y8: 3 | Z8: TOTAL GASTOS | AA8: =AA9 -> 0 | AB8: 0 | AC8: 0 | AD8: 0 | AE8: 0 | AF8: 0 | AG8: 0 | AH8: =AH9 -> 0 | AI8: 0 | AJ8: 0 | AK8: 3 | AL8: TOTAL GASTOS | AM8: =AM9 -> 421605984018 | AN8: 0 | AO8: 0 | AP8: 421605984018 | AQ8: 319169152649 | AR8: 319169152649 | AS8: =AR8/AP8 -> 0.7570318372 | AT8: 102436831368 | AU8: 102436831368 | AV8: 1
A9: 330000000000000 | B9: GASTOS | C9: =+C10 -> 382346750258 | D9: 0 | E9: 0 | F9: 382346750258 | G9: 295541203313 | H9: 295541203313 | I9: =H9/F9 -> 0.7729664319 | J9: =+J10 -> 86805546944 | K9: 86805546944 | L9: 1 | M9: 330000000000000 | N9: GASTOS | O9: =+O10 -> 39259233760 | P9: 0 | Q9: 0 | R9: 39259233760 | S9: 23627949336 | T9: 23627949336 | U9: =T9/R9 -> 0.6018443834 | V9: =+V10 -> 15631284424 | W9: 15631284424 | X9: 0 | Y9: 330000000000000 | Z9: GASTOS | AA9: =+AA10 -> 0 | AB9: 0 | AC9: 0 | AD9: 0 | AE9: 0 | AF9: 0 | AG9: 0 | AH9: =+AH10 -> 0 | AI9: =+AI10 -> 0 | AJ9: =+AJ10 -> 0 | AK9: 330000000000000 | AL9: GASTOS | AM9: =+AM10 -> 421605984018 | AN9: 0 | AO9: 0 | AP9: 421605984018 | AQ9: 319169152649 | AR9: 319169152649 | AS9: =AR9/AP9 -> 0.7570318372 | AT9: =+AT10 -> 102436831368 | AU9: 102436831368 | AV9: 1
A10: 334000000000000 | B10: INVERSION | C10: 382346750258 | D10: 0 | E10: 0 | F10: 382346750258 | G10: 295541203313 | H10: 295541203313 | I10: 0.7729664319 | J10: 86805546944 | K10: 86805546944 | L10: 1 | M10: 334000000000000 | N10: INVERSION | O10: 39259233760 | P10: 0 | Q10: 0 | R10: 39259233760 | S10: 23627949336 | T10: 23627949336 | U10: 0.6018443834 | V10: 15631284424 | W10: 15631284424 | X10: 0 | Y10: 334000000000000 | Z10: INVERSION | AA10: 0 | AB10: 0 | AC10: 0 | AD10: 0 | AE10: 0 | AF10: 0 | AG10: 0 | AH10: 0 | AI10: 0 | AJ10: 0 | AK10: 334000000000000 | AL10: INVERSION | AM10: 421605984018 | AN10: 0 | AO10: 0 | AP10: 421605984018 | AQ10: 319169152649 | AR10: 319169152649 | AS10: 0.7570318372 | AT10: 102436831368 | AU10: 102436831368 | AV10: 1
A11: 334010000000000 | B11: DIRECTA | C11: 382346750258 | D11: 0 | E11: 0 | F11: 382346750258 | G11: 295541203313 | H11: 295541203313 | I11: 0.7729664319 | J11: 86805546944 | K11: 86805546944 | L11: 1 | M11: 334010000000000 | N11: DIRECTA | O11: 39259233760 | P11: 0 | Q11: 0 | R11: 39259233760 | S11: 23627949336 | T11: 23627949336 | U11: 0.6018443834 | V11: 15631284424 | W11: 15631284424 | X11: 0 | Y11: 334010000000000 | Z11: DIRECTA | AA11: 0 | AB11: 0 | AC11: 0 | AD11: 0 | AE11: 0 | AF11: 0 | AG11: 0 | AH11: 0 | AI11: 0 | AJ11: 0 | AK11: 334010000000000 | AL11: DIRECTA | AM11: 421605984018 | AN11: 0 | AO11: 0 | AP11: 421605984018 | AQ11: 319169152649 | AR11: 319169152649 | AS11: 0.7570318372 | AT11: 102436831368 | AU11: 102436831368 | AV11: 1
A12: 334011500000000 | B12: BOGOTÁ MEJOR PARA TODOS | C12: =C13+C27 -> 382346750258 | D12: 0 | E12: 0 | F12: 382346750258 | G12: 295541203313 | H12: 295541203313 | I12: 0.7729664319 | J12: =J13+J27 -> 86805546944 | K12: 86805546944 | L12: 1 | M12: 334011500000000 | N12: BOGOTÁ MEJOR PARA TODOS | O12: =O13+O27 -> 39259233760 | P12: 0 | Q12: 0 | R12: 39259233760 | S12: 23627949336 | T12: 23627949336 | U12: 0.6018443834 | V12: =V13+V27 -> 15631284424 | W12: 15631284424 | X12: 0 | Y12: 334011500000000 | Z12: BOGOTÁ MEJOR PARA TODOS | AA12: 0 | AB12: 0 | AC12: 0 | AD12: 0 | AE12: 0 | AF12: 0 | AG12: =AF12/AD12 ->  | AH12: 0 | AI12: 0 | AJ12: 0 | AK12: 334011500000000 | AL12: BOGOTÁ MEJOR PARA TODOS | AM12: =AM13+AM27 -> 421605984018 | AN12: 0 | AO12: 0 | AP12: 421605984018 | AQ12: 319169152649 | AR12: 319169152649 | AS12: 0.7570318372 | AT12: =AT13+AT27 -> 102436831368 | AU12: 102436831368 | AV12: 1
A13: 334011502000000 | B13: PILAR DEMOCRACIA URBANA | C13: =C14 -> 376659234239 | D13: 0 | E13: 0 | F13: 376659234239 | G13: 295541203313 | H13: 295541203313 | I13: 0.7846381462 | J13: =J14 -> 81118030925 | K13: 81118030925 | L13: 1 | M13: 334011502000000 | N13: PILAR DEMOCRACIA URBANA | O13: =O14 -> 39259233760 | P13: 0 | Q13: 0 | R13: 39259233760 | S13: 23627949336 | T13: 23627949336 | U13: 0.6018443834 | V13: =V14 -> 15631284424 | W13: 15631284424 | X13: 0 | Y13: 334011502000000 | Z13: PILAR DEMOCRACIA URBANA | AA13: 0 | AB13: 0 | AC13: 0 | AD13: 0 | AE13: 0 | AF13: 0 | AG13: =AF13/AD13 ->  | AH13: 0 | AI13: 0 | AJ13: 0 | AK13: 334011502000000 | AL13: PILAR DEMOCRACIA URBANA | AM13: =AM14 -> 415918467999 | AN13: 0 | AO13: 0 | AP13: 415918467999 | AQ13: 319169152649 | AR13: 319169152649 | AS13: 0.7673839399 | AT13: =AT14 -> 96749315349 | AU13: 96749315349 | AV13: 1
A14: 334011502130000 | B14: INFRAESTRUCTURA PARA EL DESARROLLO DEL HÁBITAT. | C14: 376659234239 | D14: 0 | E14: 0 | F14: 376659234239 | G14: 295541203313 | H14: 295541203313 | I14: 0.7846381462 | J14: 81118030925 | K14: 81118030925 | L14: =L15 -> 1 | M14: 334011502130000 | N14: INFRAESTRUCTURA PARA EL DESARROLLO DEL HÁBITAT. | O14: 39259233760 | P14: 0 | Q14: 0 | R14: 39259233760 | S14: 23627949336 | T14: 23627949336 | U14: 0.6018443834 | V14: 15631284424 | W14: 15631284424 | X14: =X15 -> 0 | Y14: 334011502130000 | Z14: INFRAESTRUCTURA PARA EL DESARROLLO DEL HÁBITAT. | AA14: 0 | AB14: 0 | AC14: 0 | AD14: 0 | AE14: 0 | AF14: 0 | AH14: 0 | AI14: 0 | AJ14: 0 | AK14: 334011502130000 | AL14: INFRAESTRUCTURA PARA EL DESARROLLO DEL HÁBITAT. | AM14: 415918467999 | AN14: 0 | AO14: 0 | AP14: 415918467999 | AQ14: 319169152649 | AR14: 319169152649 | AS14: 0.7673839399 | AT14: 96749315349 | AU14: 96749315349 | AV14: 1
A15: 334011502130133 | B15: INFRAESTRUCTURA PARA EL DESARROLLO DEL HÁBITAT. | C15: =SUM(C16:C26) -> 376659234239 | D15: 0 | E15: 0 | F15: 376659234239 | G15: 295541203313 | H15: 295541203313 | I15: 0.7846381462 | J15: =SUM(J16:J26) -> 81118030925 | K15: 81118030925 | L15: 1 | M15: 334011502130133 | N15: INFRAESTRUCTURA PARA EL DESARROLLO DEL HÁBITAT. | O15: =SUM(O16:O26) -> 39259233760 | P15: 0 | Q15: 0 | R15: 39259233760 | S15: 23627949336 | T15: 23627949336 | U15: 0.6018443834 | V15: =SUM(V16:V26) -> 15631284424 | W15: 15631284424 | X15: 0 | Y15: 334011502130133 | Z15: INFRAESTRUCTURA PARA EL DESARROLLO DEL HÁBITAT. | AA15: =SUM(AA16:AA31) -> 0 | AB15: 0 | AC15: 0 | AD15: 0 | AE15: 0 | AF15: 0 | AH15: =SUM(AH16:AH31) -> 0 | AI15: =SUM(AI16:AI31) -> 0 | AJ15: =SUM(AJ16:AJ31) -> 0 | AK15: 334011502130133 | AL15: INFRAESTRUCTURA PARA EL DESARROLLO DEL HÁBITAT. | AM15: =SUM(AM16:AM26) -> 415918467999 | AN15: 0 | AO15: 0 | AP15: 415918467999 | AQ15: 319169152649 | AR15: 319169152649 | AS15: 0.7673839399 | AT15: =SUM(AT16:AT26) -> 96749315349 | AU15: 96749315349 | AV15: 1
A16: 334011502130133000019 | B16: CONST. REDES LOCALES SERVICIO DE ALCANTARILLADO PLUVIAL | C16: 11668762025 | D16: 0 | E16: 0 | F16: 11668762025 | G16: 0 | H16: 0 | I16: 0 | J16: 11668762025 | K16: 11668762025 | L16: =F16-H16-K16 -> 0 | M16: 334011502130133000019 | N16: CONST. REDES LOCALES SERVICIO DE ALCANTARILLADO PLUVIAL | O16: 5275090598 | P16: 0 | Q16: 0 | R16: 5275090598 | S16: 0 | T16: 0 | U16: 0 | V16: 5275090598 | W16: 5275090598 | X16: =R16-T16-W16 -> 0 | Y16: 334011502130133000019 | Z16: CONST. REDES LOCALES SERVICIO DE ALCANTARILLADO PLUVIAL | AA16: 0 | AB16: 0 | AC16: 0 | AD16: 0 | AE16: 0 | AF16: 0 | AG16: 0 | AH16: 0 | AI16: 0 | AJ16: 0 | AK16: 334011502130133000019 | AL16: CONST. REDES LOCALES SERVICIO DE ALCANTARILLADO PLUVIAL | AM16: 16943852623 | AN16: 0 | AO16: 0 | AP16: 16943852623 | AQ16: 0 | AR16: 0 | AS16: 0 | AT16: 16943852623 | AU16: 16943852623 | AV16: =AP16-AR16-AU16 -> 0
A17: 334011502130133000020 | B17: CONST. REDES LOCALES SERVICIO DE ALCANTARILLADO SANITARIO | C17: 14636414189 | D17: 0 | E17: 0 | F17: 14636414189 | G17: 0 | H17: 0 | I17: =H17/F17 -> 0 | J17: 14636414189 | K17: 14636414189 | L17: =F17-H17-K17 -> 0 | M17: 334011502130133000020 | N17: CONST. REDES LOCALES SERVICIO DE ALCANTARILLADO SANITARIO | O17: 7487307593 | P17: 0 | Q17: 0 | R17: 7487307593 | S17: 0 | T17: 0 | U17: 0 | V17: 7487307593 | W17: 7487307593 | X17: =R17-T17-W17 -> 0 | Y17: 334011502130133000020 | Z17: CONST. REDES LOCALES SERVICIO DE ALCANTARILLADO SANITARIO | AA17: 0 | AB17: 0 | AC17: 0 | AD17: 0 | AE17: 0 | AF17: 0 | AG17: 0 | AH17: 0 | AI17: 0 | AJ17: 0 | AK17: 334011502130133000020 | AL17: CONST. REDES LOCALES SERVICIO DE ALCANTARILLADO SANITARIO | AM17: 22123721782 | AN17: 0 | AO17: 0 | AP17: 22123721782 | AQ17: 0 | AR17: 0 | AS17: 0 | AT17: 22123721782 | AU17: 22123721782 | AV17: =AP17-AR17-AU17 -> 0
A18: 334011502130133000050 | B18: REN, REHAB O REP SIST ABAST, DIST MATRIZ Y RED LOCAL AC. | C18: 203261089828 | D18: 0 | E18: 0 | F18: 203261089828 | G18: 201945486528 | H18: 201945486528 | I18: 0.9935275202 | J18: 1315603300 | K18: 1315603300 | L18: 0 | M18: 334011502130133000050 | N18: REN, REHAB O REP SIST ABAST, DIST MATRIZ Y RED LOCAL AC. | O18: 23627949336 | P18: 0 | Q18: 0 | R18: 23627949336 | S18: 23627949336 | T18: 23627949336 | U18: 1 | V18: 0 | W18: 0 | X18: 0 | Y18: 334011502130133000050 | Z18: REN, REHAB O REP SIST ABAST, DIST MATRIZ Y RED LOCAL AC. | AA18: 0 | AB18: 0 | AC18: 0 | AD18: 0 | AE18: 0 | AF18: 0 | AH18: 0 | AI18: 0 | AJ18: 0 | AK18: 334011502130133000050 | AL18: REN, REHAB O REP SIST ABAST, DIST MATRIZ Y RED LOCAL AC. | AM18: 226889039164 | AN18: 0 | AO18: 0 | AP18: 226889039164 | AQ18: 225573435864 | AR18: 225573435864 | AS18: 0.9942015564 | AT18: 1315603300 | AU18: 1315603300 | AV18: 0
A19: 334011502130133000051 | B19: REN, REHAB O REP SIST TRONCAL SECUNDARIO Y LOCAL ALC. SANITA | C19: 39298907867 | D19: 0 | E19: 0 | F19: 39298907867 | G19: 16588058607 | H19: 16588058607 | I19: 0.4220997353 | J19: 22710849260 | K19: 22710849260 | L19: 0 | M19: 334011502130133000051 | N19: REN, REHAB O REP SIST TRONCAL SECUNDARIO Y LOCAL ALC. SANITA | O19: 0 | P19: 0 | Q19: 0 | R19: 0 | S19: 0 | T19: 0 | U19: 0 | V19: 0 | W19: 0 | X19: 0 | Y19: 334011502130133000051 | Z19: REN, REHAB O REP SIST TRONCAL SECUNDARIO Y LOCAL ALC. SANITA | AA19: 0 | AB19: 0 | AC19: 0 | AD19: 0 | AE19: 0 | AF19: 0 | AG19: 0 | AH19: 0 | AI19: 0 | AJ19: 0 | AK19: 334011502130133000051 | AL19: REN, REHAB O REP SIST TRONCAL SECUNDARIO Y LOCAL ALC. SANITA | AM19: 39298907867 | AN19: 0 | AO19: 0 | AP19: 39298907867 | AQ19: 16588058607 | AR19: 16588058607 | AS19: 0.4220997353 | AT19: 22710849260 | AU19: 22710849260 | AV19: 0
A20: 334011502130133000052 | B20: REN REHAB O REP SIST TRONCAL SECUNDARIO Y LOCAL ALC. PLUVIAL | C20: 14427013747 | D20: 0 | E20: 0 | F20: 14427013747 | G20: 3140310681 | H20: 3140310681 | I20: 0.2176687938 | J20: 11286703065 | K20: 11286703065 | L20: 1 | M20: 334011502130133000052 | N20: REN REHAB O REP SIST TRONCAL SECUNDARIO Y LOCAL ALC. PLUVIAL | O20: 0 | P20: 0 | Q20: 0 | R20: 0 | S20: 0 | T20: 0 | U20: 0 | V20: 0 | W20: 0 | X20: 0 | Y20: 334011502130133000052 | Z20: REN REHAB O REP SIST TRONCAL SECUNDARIO Y LOCAL ALC. PLUVIAL | AA20: 0 | AB20: 0 | AC20: 0 | AD20: 0 | AE20: 0 | AF20: 0 | AG20: 0 | AH20: 0 | AI20: 0 | AJ20: 0 | AK20: 334011502130133000052 | AL20: REN REHAB O REP SIST TRONCAL SECUNDARIO Y LOCAL ALC. PLUVIAL | AM20: 14427013747 | AN20: 0 | AO20: 0 | AP20: 14427013747 | AQ20: 3140310681 | AR20: 3140310681 | AS20: 0.2176687938 | AT20: 11286703065 | AU20: 11286703065 | AV20: 1
A21: 334011502130133000053 | B21: REN, REHAB O REP SIST TRONCAL, SECUNDARIO Y LOCAL ALC. COMBI | C21: 0 | D21: 0 | E21: 0 | F21: 0 | G21: 0 | H21: 0 | I21: 0 | J21: 0 | K21: 0 | L21: 0 | M21: 334011502130133000053 | N21: REN, REHAB O REP SIST TRONCAL, SECUNDARIO Y LOCAL ALC. COMBI | O21: 0 | P21: 0 | Q21: 0 | R21: 0 | S21: 0 | T21: 0 | U21: 0 | V21: 0 | W21: 0 | X21: 0 | Y21: 334011502130133000053 | Z21: REN, REHAB O REP SIST TRONCAL, SECUNDARIO Y LOCAL ALC. COMBI | AA21: 0 | AB21: 0 | AC21: 0 | AD21: 0 | AE21: 0 | AF21: 0 | AG21: 0 | AH21: 0 | AI21: 0 | AJ21: 0 | AK21: 334011502130133000053 | AL21: REN, REHAB O REP SIST TRONCAL, SECUNDARIO Y LOCAL ALC. COMBI | AM21: 0 | AN21: 0 | AO21: 0 | AP21: 0 | AQ21: 0 | AR21: 0 | AS21: 0 | AT21: 0 | AU21: 0 | AV21: 0
A22: 334011502130133000054 | B22: ACCIONES PARA EL SANEAMIENTO DEL RÍO BOGOTÁ | C22: 65381426116 | D22: 0 | E22: 0 | F22: 65381426116 | G22: 65381426116 | H22: 65381426116 | I22: 1 | J22: 0 | K22: 0 | L22: 0 | M22: 334011502130133000054 | N22: ACCIONES PARA EL SANEAMIENTO DEL RÍO BOGOTÁ | O22: 0 | P22: 0 | Q22: 0 | R22: 0 | S22: 0 | T22: 0 | U22: 0 | V22: 0 | W22: 0 | X22: 0 | Y22: 334011502130133000054 | Z22: ACCIONES PARA EL SANEAMIENTO DEL RÍO BOGOTÁ | AA22: 0 | AB22: 0 | AC22: 0 | AD22: 0 | AE22: 0 | AF22: 0 | AG22: 0 | AH22: 0 | AI22: 0 | AJ22: 0 | AK22: 334011502130133000054 | AL22: ACCIONES PARA EL SANEAMIENTO DEL RÍO BOGOTÁ | AM22: 65381426116 | AN22: 0 | AO22: 0 | AP22: 65381426116 | AQ22: 65381426116 | AR22: 65381426116 | AS22: 1 | AT22: 0 | AU22: 0 | AV22: 0
A23: 334011502130133000068 | B23: CONST, REN, REHAB O REP REDES ASOCIADAS INFRAESTRUCTURA VIAL | C23: 10754705083 | D23: 0 | E23: 0 | F23: 10754705083 | G23: 3318821982 | H23: 3318821982 | I23: 0.3085925608 | J23: 7435883101 | K23: 7435883101 | L23: 0 | M23: 334011502130133000068 | N23: CONST, REN, REHAB O REP REDES ASOCIADAS INFRAESTRUCTURA VIAL | O23: 0 | P23: 0 | Q23: 0 | R23: 0 | S23: 0 | T23: 0 | U23: 0 | V23: 0 | W23: 0 | X23: 0 | Y23: 334011502130133000068 | Z23: CONST, REN, REHAB O REP REDES ASOCIADAS INFRAESTRUCTURA VIAL | AA23: 0 | AB23: 0 | AC23: 0 | AD23: 0 | AE23: 0 | AF23: 0 | AG23: 0 | AH23: 0 | AI23: 0 | AJ23: 0 | AK23: 334011502130133000068 | AL23: CONST, REN, REHAB O REP REDES ASOCIADAS INFRAESTRUCTURA VIAL | AM23: 10754705083 | AN23: 0 | AO23: 0 | AP23: 10754705083 | AQ23: 3318821982 | AR23: 3318821982 | AS23: 0.3085925608 | AT23: 7435883101 | AU23: 7435883101 | AV23: 0
A24: 334011502130133000081 | B24: CORREDORES AMBIENTALES | C24: 0 | D24: 0 | E24: 0 | F24: 0 | G24: 0 | H24: 0 | I24: 0 | J24: 0 | K24: 0 | L24: 0 | M24: 334011502130133000081 | N24: CORREDORES AMBIENTALES | O24: 0 | P24: 0 | Q24: 0 | R24: 0 | S24: 0 | T24: 0 | U24: 0 | V24: 0 | W24: 0 | X24: 0 | Y24: 334011502130133000081 | Z24: CORREDORES AMBIENTALES | AA24: 0 | AB24: 0 | AC24: 0 | AD24: 0 | AE24: 0 | AF24: 0 | AG24: 0 | AH24: 0 | AI24: 0 | AJ24: 0 | AK24: 334011502130133000081 | AL24: CORREDORES AMBIENTALES | AM24: 0 | AN24: 0 | AO24: 0 | AP24: 0 | AQ24: 0 | AR24: 0 | AS24: 0 | AT24: 0 | AU24: 0 | AV24: 0
A25: 334011502130133007334 | B25: CONST Y EXPANSIÓN DEL SISTEMA DE ABASTECIMIENTO Y MATRIZ AC. | C25: 13433170360 | D25: 0 | E25: 0 | F25: 13433170360 | G25: 5167099399 | H25: 5167099399 | I25: =H25/F25 -> 0.3846522645 | J25: 8266070961 | K25: 8266070961 | L25: 0 | M25: 334011502130133007334 | N25: CONST Y EXPANSIÓN DEL SISTEMA DE ABASTECIMIENTO Y MATRIZ AC. | O25: 0 | P25: 0 | Q25: 0 | R25: 0 | S25: 0 | T25: 0 | U25: 0 | V25: 0 | W25: 0 | X25: 0 | Y25: 334011502130133007334 | Z25: CONST Y EXPANSIÓN DEL SISTEMA DE ABASTECIMIENTO Y MATRIZ AC. | AA25: 0 | AB25: 0 | AC25: 0 | AD25: 0 | AE25: 0 | AF25: 0 | AG25: 0 | AH25: 0 | AI25: 0 | AJ25: 0 | AK25: 334011502130133007334 | AL25: CONST Y EXPANSIÓN DEL SISTEMA DE ABASTECIMIENTO Y MATRIZ AC. | AM25: 13433170360 | AN25: 0 | AO25: 0 | AP25: 13433170360 | AQ25: 5167099399 | AR25: 5167099399 | AS25: =AR25/AP25 -> 0.3846522645 | AT25: 8266070961 | AU25: 8266070961 | AV25: 0
A26: 334011502130133007338 | B26: CONSTRUCCIÓN DE REDES LOCALES PARA EL SERVICIO DE ACUEDUCTO | C26: 3797745024 | D26: 0 | E26: 0 | F26: 3797745024 | G26: 0 | H26: 0 | I26: 0 | J26: 3797745024 | K26: 3797745024 | L26: 0 | M26: 334011502130133007338 | N26: CONSTRUCCIÓN DE REDES LOCALES PARA EL SERVICIO DE ACUEDUCTO | O26: 2868886233 | P26: 0 | Q26: 0 | R26: 2868886233 | S26: 0 | T26: 0 | U26: 0 | V26: 2868886233 | W26: 2868886233 | X26: 0 | Y26: 334011502130133007338 | Z26: CONSTRUCCIÓN DE REDES LOCALES PARA EL SERVICIO DE ACUEDUCTO | AA26: 0 | AB26: 0 | AC26: 0 | AD26: 0 | AE26: 0 | AF26: 0 | AG26: 0 | AH26: 0 | AI26: 0 | AJ26: 0 | AK26: 334011502130133007338 | AL26: CONSTRUCCIÓN DE REDES LOCALES PARA EL SERVICIO DE ACUEDUCTO | AM26: 6666631257 | AN26: 0 | AO26: 0 | AP26: 6666631257 | AQ26: 0 | AR26: 0 | AS26: =AR26/AP26 -> 0 | AT26: 6666631257 | AU26: 6666631257 | AV26: 0
A27: 334011506000000 | B27: Eje Transversal 3 Sostenibilidad Ambiental Basada en la Eficiencia Energética. | C27: =C28+C30 -> 5687516019 | D27: 0 | E27: 0 | F27: 5687516019 | G27: 0 | H27: =H28+H30 -> 0 | I27: 0 | J27: =J28+J30 -> 5687516019 | K27: 5687516019 | L27: 0 | M27: 334011506000000 | N27: Eje Transversal 3 Sostenibilidad Ambiental Basada en la Eficiencia Energética. | O27: =O28+O30 -> 0 | P27: 0 | Q27: 0 | R27: 0 | S27: 0 | T27: =T28+T30 -> 0 | U27: 0 | V27: =V28+V30 -> 0 | W27: 0 | X27: 0 | AK27: 334011506000000 | AL27: Eje Transversal 3 Sostenibilidad Ambiental Basada en la Eficiencia Energética. | AM27: =AM28+AM30 -> 5687516019 | AN27: =AN28+AN30 -> 0 | AO27: 0 | AP27: 5687516019 | AQ27: 0 | AR27: 0 | AS27: =AR27/AP27 -> 0 | AT27: =AT28+AT30 -> 5687516019 | AU27: 5687516019 | AV27: 0
A28: 334011506380000 | B28: Recuperación y manejo de la Estructura Ecológica Principal | C28: =C29 -> 764011757 | D28: 0 | E28: 0 | F28: 764011757 | G28: 0 | H28: 0 | I28: 0 | J28: =J29 -> 764011757 | K28: 764011757 | L28: 0 | M28: 334011506380000 | N28: Recuperación y manejo de la Estructura Ecológica Principal | O28: =O29 -> 0 | P28: 0 | Q28: 0 | R28: 0 | S28: 0 | T28: 0 | U28: 0 | V28: =V29 -> 0 | W28: 0 | X28: 0 | AK28: 334011506380000 | AL28: Recuperación y manejo de la Estructura Ecológica Principal | AM28: =AM29 -> 764011757 | AN28: =AN29 -> 0 | AO28: 0 | AP28: 764011757 | AQ28: 0 | AR28: 0 | AS28: 0 | AT28: =AT29 -> 764011757 | AU28: 764011757 | AV28: 0
A29: 334011506380177007341 | B29: ADECUACIÓN HIDRÁULICA Y RECUPERACIÓN AMBIENTAL DE HUMEDALES, | C29: 764011757 | D29: 0 | E29: 0 | F29: 764011757 | G29: 0 | H29: 0 | I29: =H29/F29 -> 0 | J29: 764011757 | K29: 764011757 | L29: =F29-H29-K29 -> 0 | M29: 334011506380177007341 | N29: ADECUACIÓN HIDRÁULICA Y RECUPERACIÓN AMBIENTAL DE HUMEDALES, | O29: 0 | P29: 0 | Q29: 0 | R29: 0 | S29: 0 | T29: 0 | U29: 0 | V29: 0 | W29: 0 | X29: =R29-T29-W29 -> 0 | Y29: 334011506380177007341 | Z29: ADECUACIÓN HIDRÁULICA Y RECUPERACIÓN AMBIENTAL DE HUMEDALES, | AA29: 0 | AB29: 0 | AC29: 0 | AD29: 0 | AE29: 0 | AF29: 0 | AG29: 0 | AH29: 0 | AI29: 0 | AJ29: 0 | AK29: 334011506380177007341 | AL29: ADECUACIÓN HIDRÁULICA Y RECUPERACIÓN AMBIENTAL DE HUMEDALES, | AM29: 764011757 | AN29: 0 | AO29: 0 | AP29: 764011757 | AQ29: 0 | AR29: 0 | AS29: =AR29/AP29 -> 0 | AT29: 764011757 | AU29: 764011757 | AV29: =AP29-AR29-AU29 -> 0
A30: 334011506390179 | B30: Ambiente Sano | C30: =C31 -> 4923504262 | D30: 0 | E30: 0 | F30: 4923504262 | G30: 0 | H30: 0 | I30: 0 | J30: =J31 -> 4923504262 | K30: 4923504262 | L30: 0 | M30: 334011506390179 | N30: Ambiente Sano | O30: =O31 -> 0 | P30: 0 | Q30: 0 | R30: 0 | S30: 0 | T30: 0 | U30: 0 | V30: =V31 -> 0 | W30: 0 | X30: 0 | AK30: 334011506390179 | AL30: Ambiente Sano | AM30: =AM31 -> 4923504262 | AN30: =AN31 -> 0 | AO30: 0 | AP30: 4923504262 | AQ30: 0 | AR30: 0 | AS30: =AR30/AP30 -> 0 | AT30: =AT31 -> 4923504262 | AU30: 4923504262 | AV30: 0
A31: 334011506390179000082 | B31: PLAN DE SANEAMIENTO Y MANEJO DE VERTIMIENTOS | C31: 4923504262 | D31: 0 | E31: 0 | F31: 4923504262 | G31: 0 | H31: 0 | I31: =H31/F31 -> 0 | J31: 4923504262 | K31: 4923504262 | L31: =F31-H31-K31 -> 0 | M31: 334011506390179000082 | N31: PLAN DE SANEAMIENTO Y MANEJO DE VERTIMIENTOS | O31: 0 | P31: 0 | Q31: 0 | R31: 0 | S31: 0 | T31: 0 | U31: 0 | V31: 0 | W31: 0 | X31: =R31-T31-W31 -> 0 | Y31: 334011506390179000082 | Z31: PLAN DE SANEAMIENTO Y MANEJO DE VERTIMIENTOS | AA31: 0 | AB31: 0 | AC31: 0 | AD31: 0 | AE31: 0 | AF31: 0 | AG31: 0 | AH31: 0 | AI31: 0 | AJ31: 0 | AK31: 334011506390179000082 | AL31: PLAN DE SANEAMIENTO Y MANEJO DE VERTIMIENTOS | AM31: 4923504262 | AN31: 0 | AO31: 0 | AP31: 4923504262 | AQ31: 0 | AR31: 0 | AS31: =AR31/AP31 -> 0 | AT31: 4923504262 | AU31: 4923504262 | AV31: =AP31-AR31-AU31 -> 0
